{"text_format":"1","workbook":"xlsx","n_sheets":5,"sheets":["Introduction","Enter_Data","Summary Report","Bulk Upload","Macro Instructions"],"not_rendered":{"charts":0,"images":2,"macros":1,"external_links":0,"defined_names":56,"comments":0,"pivot_tables":0},"unopened":[],"bounds":{"document_bytes":16777216,"sheet_cells":100000,"rows_first":2000,"rows_last":500,"rows_between":2000,"halvings":0,"cell_chars":16384,"cell_head_chars":4096},"cells_cut":0,"cells_raw":0,"read":"whole","date_system":"1900"}

{"sheet":"Introduction","index":0,"n_rows":5,"n_cols":25,"rows_kept":5,"cut":false,"hidden":false,"merged":[[37,3,40,23],[0,1,2,25],[9,3,12,23],[15,3,21,23],[24,3,25,23],[28,3,34,23]]}
[null,"SP Streamlined Carbon Emissions Questionnaire"]
[]
[]
[]
[null,null,"Introduction",null,null,null,null,null,null,null,null,null,null,null,null,null,null,null,null,null,null,null,null,null,"Version 1.0 - May 2025"]

{"sheet":"Enter_Data","index":1,"n_rows":65,"n_cols":7,"rows_kept":65,"cut":false,"hidden":false,"merged":[[0,1,2,7],[6,2,6,6],[7,2,7,6]]}
[null,"SP Streamlined Carbon Emissions Questionnaire"]
[]
[]
[]
[null,null,"Site-Level Questionairre"]
[]
[null,null,"Please use this tab to enter your emissions data for a single site.  This form has survey logic applied and additional questions may be displayed in each section based on your responses to the red highlighted questions. A list of all possible questions may be found in the next tab."]
[null,null,"This tab uses macros to enable survey logic functionality - please see instructions on how to enable macros if needed."]
[]
[null,null,"Question","Response Type","Response","Logic Notes (NOT YET IMPLEMENTED","Guidance"]
[null,null,"Supplier manufacturing site name","Free text",null,null,"Enter site business name"]
[null,null,"Supplier manufacturing site level ID (e.g., DUNS #, OEM Supplier Code)","Free text",null,null,"Enter site level OEM-provided supplier ID code, if applicable."]
[null,null,"Supplier contact person name","Free text",null,null,"Enter name of individual completing this questionairre "]
[null,null,"Supplier contact person e-mail address","Free text",null,null,"Enter buiness email address of individual completing this questionairre"]
[]
[null,null,"Emissions Data"]
[null,null,"Do you have Greenhouse Gas (GHG) data for year 2024?","Yes/No"]
[null,null,"How would you like to submit your allocated emissions?","Dropdown: TOTAL emissions and OEM revenue share, OEM allocated emissions",null,"Show only if 17 = Yes","Allocated emissions = Total emissions x OEM's revenue % for this site\n\nUnallocated: Means you will provide TOTAL emissions and OEM revenue share for the site (OEM will calculate allocated emissions)\n\nPre-Allocated: Means you will only provide OEM allocated emissions (You will calculate the allocated emissions separately)"]
[null,null,"Unallocated Option: Please provide OEM’s revenue share percentage for this site (0-100)","Numeric",null,"Show only if 18 = Unallocated","For the purposes of this survey, “OEM” is understood to refer to the individual customer that is requesting data from their supplier."]
[null,null,"Unallocated Option: Please provide your TOTAL scope 1 emissions for this site (metric tons CO2e)","Numeric",null,"Show only if 18 = Unallocated"]
[null,null,"Unallocated Option: Please provide your TOTAL location-based Scope 2 GHG emissions for this site (metric tons CO2e)","Numeric",null,"Show only if 18 = Unallocated"]
[null,null,"Unallocated Option: Please provide your TOTAL market-based Scope 2 GHG emissions for this site (metric tons CO2e)","Numeric",null,"Show only if 18 = Unallocated"]
[null,null,"Pre-Allocated Option: Please provide your OEM allocated scope 1 emissions for this site (metric tons CO2e)","Numeric",null,"Show only if 18 = Pre-allocated"]
[null,null,"Pre-Allocated Option: Please provide your OEM allocated location-based Scope 2 GHG emissions for this site (metric tons CO2e)","Numeric",null,"Show only if 18 = Pre-allocated"]
[null,null,"Pre-Allocated Option: Please provide your OEM allocated market-based Scope 2 GHG emissions for this site (metric tons CO2e)","Numeric",null,"Show only if 18 = Pre-allocated"]
[null,null,"Have the Scope 1 / Scope 2 GHG emissions for this site been verified through a third party?","Yes/No",null,"Show only if 17 = Yes"]
[]
[null,null,"Scope 3 Emissions Data "]
[null,null,"Does this site collect or estimate Scope 3 GHG emissions data?","Yes/No"]
[null,null,"If calculated, please provide your ALLOCATED Scope 3 GHG emissions for this site by category (metric tons CO2e)","Numeric",null,"Show only if 29 = Yes","Exclude CAT 11 & 12 as OEM info"]
[null,null,"Category 1 – upstream: Purchased Goods & Services (metric tons CO2e)","Numeric",null,"Show only if 29 = Yes"]
[null,null,"Category 2 – upstream: Capital Goods (metric tons CO2e)","Numeric",null,"Show only if 29 = Yes"]
[null,null,"Category 3 – upstream: Fuel- and energy-related activities (metric tons CO2e)","Numeric",null,"Show only if 29 = Yes"]
[null,null,"Category 4 – upstream: Transportation & Distribution (metric tons CO2e)","Numeric",null,"Show only if 29 = Yes"]
[null,null,"Category 5 – upstream: Waste Generated in Operations (metric tons CO2e)","Numeric",null,"Show only if 29 = Yes"]
[null,null,"Category 6 – upstream: Business Travel (metric tons CO2e)","Numeric",null,"Show only if 29 = Yes"]
[null,null,"Category 7 – upstream: Employee Commuting (metric tons CO2e)","Numeric",null,"Show only if 29 = Yes"]
[null,null,"Category 8 – upstream: Leased Assets (metric tons CO2e)","Numeric",null,"Show only if 29 = Yes"]
[null,null,"Category 9 – downstream: Transportation & Distribution (metric tons CO2e)","Numeric",null,"Show only if 29 = Yes"]
[null,null,"Category 10 – downstream: Processing of Sold Products (metric tons CO2e)","Numeric",null,"Show only if 29 = Yes"]
[null,null,"Category 13 – downstream: Leased Assets (metric tons CO2e)","Numeric",null,"Show only if 29 = Yes"]
[null,null,"Category 14 – downstream: Franchises (metric tons CO2e)","Numeric",null,"Show only if 29 = Yes"]
[null,null,"Category 15 – downstream: Investments (metric tons CO2e)","Numeric",null,"Show only if 29 = Yes"]
[null,null,"Have the Scope 3 GHG emissions at this site been verified through a third party?","Yes/No",null,"Show only if 29 = Yes"]
[]
[null,null,"2030 (Near Term) Emission Reduction Targets"]
[null,null,"Does this site have an absolute Scope 1 & 2 GHG emissions reduction target for 2030?","Yes/No"]
[null,null,"Baseline year (YYYY) for absolute Scope 1 & 2 GHG emissions reduction 2030 target","YYYY",null,"Show only if 47 = Yes"]
[null,null,"What is this facility’s absolute Scope 1 & 2 emissions reduction target for 2030?","Percent",null,"Show only if 47 = Yes"]
[null,null,"Does this site have an absolute Scope 3 emissions reduction target for 2030?","Yes/No",null,"Show only if 47 = Yes"]
[null,null,"Baseline year (YYYY) for absolute Scope 3 emissions reduction 2030 target","YYYY",null,"Show only if 47 = Yes"]
[null,null,"What is this facility’s absolute Scope 3 emissions reduction target for 2030?","Percent",null,"Show only if 47 = Yes"]
[]
[null,null,"Carbon Neutral Targets"]
[null,null,"Do you have a target date to be carbon neutral for scope 1, 2 and 3 emissions?","Yes/No",null,null,"Note: this question is inclusive of all scopes (Scope 1, 2, and 3)"]
[null,null,"By what year does this site target to be carbon neutral for scope 1, 2 and 3 emissions?","YYYY",null,"Show only if 55 = Yes","Note: this question is inclusive of all scopes (Scope 1, 2, and 3)"]
[null,null,"Do you have a Science Based Scope 1, 2 and 3 GHG reduction goal to achieve carbon neutrality by 2050?","Yes/No",null,"Show only if 55 = Yes","Note: this question is inclusive of all scopes (Scope 1, 2, and 3)"]
[null,null,"Has your carbon neutrality target date for scope 1, 2 and 3 GHG emissions been externally validated?","Dropdown",null,"Show only if 55 = Yes","Note: this question is inclusive of all scopes (Scope 1, 2, and 3). Please see below explanations of the options available within the drop down menu.\n- SBTi Approved: Yes, target(s) has been approved by the Science Based Targets initiative\n- SBTi Approval Expected: We expect target(s) to be approved by the Science Based Targets initiative within 2 years\n- Third Party Validated: Target(s) has been validated by a third party, not the Science Based Targets initiative\n- Science Based: We believe our target(s) is science-based but have no plans to seek formal approval or validation\n- Target: We have a target but do not plan to seek formal approval or validation\n- None of the above or not relevant"]
[null,null,"By what year does this site target to be carbon neutral for scope 1 and 2 emissions?","YYYY",null,null,"Note: this question refers to Scope 1  & 2 emissions only. If no target exists, please enter \"N/A\"."]
[null,null,"Has your carbon neutrality target date for scope 1 & 2 GHG emissions been externally validated?","Dropdown",null,null,"Note: this question refers to Scope 1  & 2 emissions only. Please see below explanations of the options available within the drop down menu.\n- SBTi Approved: Yes, target(s) has been approved by the Science Based Targets initiative\n- SBTi Approval Expected: We expect target(s) to be approved by the Science Based Targets initiative within 2 years\n- Third Party Validated: Target(s) has been validated by a third party, not the Science Based Targets initiative\n- Science Based: We believe our target(s) is science-based but have no plans to seek formal approval or validation\n- Target: We have a target but do not plan to seek formal approval or validation\n- None of the above or not relevant"]
[null,null,"Please provide the name of third party that has done the validation, if applicable.","Free text",null,null,"If none, enter \"N/A\"."]
[null,null,"Has your carbon neutrality target been disclosed?","Yes/No"]
[]
[]
[null,null,"© 2025 Suppliers Partnership for the Environment (SP)"]

{"sheet":"Summary Report","index":2,"n_rows":65,"n_cols":5,"rows_kept":65,"cut":false,"hidden":false,"merged":[[63,5,63,6],[64,5,64,6],[65,5,65,6],[61,5,61,6],[62,5,62,6],[60,5,60,6],[49,5,49,6],[50,5,50,6],[51,5,51,6],[52,5,52,6],[53,5,53,6],[54,5,54,6],[55,5,55,6],[56,5,56,6],[57,5,57,6],[58,5,58,6],[59,5,59,6],[48,5,48,6],[37,5,37,6],[38,5,38,6],[39,5,39,6],[40,5,40,6],[41,5,41,6],[42,5,42,6],[43,5,43,6],[44,5,44,6],[45,5,45,6],[46,5,46,6],[47,5,47,6],[36,5,36,6],[25,5,25,6],[26,5,26,6],[27,5,27,6],[28,5,28,6],[29,5,29,6],[30,5,30,6],[31,5,31,6],[32,5,32,6],[33,5,33,6],[34,5,34,6],[35,5,35,6],[24,5,24,6],[13,5,13,6],[14,5,14,6],[15,5,15,6],[16,5,16,6],[17,5,17,6],[18,5,18,6],[19,5,19,6],[20,5,20,6],[21,5,21,6],[22,5,22,6],[23,5,23,6],[12,5,12,6],[0,1,2,6],[3,5,3,6],[4,5,4,6],[5,5,5,6],[6,2,6,4],[6,5,6,6],[7,5,7,6],[8,5,8,6],[9,5,9,6],[10,5,10,6],[11,5,11,6]]}
[null,"SP Streamlined Carbon Emissions Questionnaire"]
[]
[]
[]
[null,null,"Summary View"]
[]
[null,null,"Please use this tab to review a summary of provided responses against the full question set to help in tracking any next steps necessary to improve overall performance at an individual site level.  \n\nAny logic dependent questions not displayed in the data entry form due to prior \"No\" responses will show a zero value in this sheet, allowing for a quick gap assessment of potential opportunities for improvement."]
[]
[]
[null,null,"Data Point","Response","Notes"]
[null,null,{"$f":"Enter_Data!C11","v":"Supplier manufacturing site name"},{"$f":"Enter_Data!E11","v":0}]
[null,null,{"$f":"Enter_Data!C12","v":"Supplier manufacturing site level ID (e.g., DUNS #, OEM Supplier Code)"},{"$f":"Enter_Data!E12","v":0}]
[null,null,{"$f":"Enter_Data!C13","v":"Supplier contact person name"},{"$f":"Enter_Data!E13","v":0}]
[null,null,{"$f":"Enter_Data!C14","v":"Supplier contact person e-mail address"},{"$f":"Enter_Data!E14","v":0}]
[]
[null,null,{"$f":"Enter_Data!C16","v":"Emissions Data"}]
[null,null,{"$f":"Enter_Data!C17","v":"Do you have Greenhouse Gas (GHG) data for year 2024?"},{"$f":"Enter_Data!E17","v":0}]
[null,null,{"$f":"Enter_Data!C18","v":"How would you like to submit your allocated emissions?"},{"$f":"Enter_Data!E18","v":0}]
[null,null,{"$f":"Enter_Data!C19","v":"Unallocated Option: Please provide OEM’s revenue share percentage for this site (0-100)"},{"$f":"Enter_Data!E19","v":0}]
[null,null,{"$f":"Enter_Data!C20","v":"Unallocated Option: Please provide your TOTAL scope 1 emissions for this site (metric tons CO2e)"},{"$f":"Enter_Data!E20","v":0}]
[null,null,{"$f":"Enter_Data!C21","v":"Unallocated Option: Please provide your TOTAL location-based Scope 2 GHG emissions for this site (metric tons CO2e)"},{"$f":"Enter_Data!E21","v":0}]
[null,null,{"$f":"Enter_Data!C22","v":"Unallocated Option: Please provide your TOTAL market-based Scope 2 GHG emissions for this site (metric tons CO2e)"},{"$f":"Enter_Data!E22","v":0}]
[null,null,{"$f":"Enter_Data!C23","v":"Pre-Allocated Option: Please provide your OEM allocated scope 1 emissions for this site (metric tons CO2e)"},{"$f":"Enter_Data!E23","v":0}]
[null,null,{"$f":"Enter_Data!C24","v":"Pre-Allocated Option: Please provide your OEM allocated location-based Scope 2 GHG emissions for this site (metric tons CO2e)"},{"$f":"Enter_Data!E24","v":0}]
[null,null,{"$f":"Enter_Data!C25","v":"Pre-Allocated Option: Please provide your OEM allocated market-based Scope 2 GHG emissions for this site (metric tons CO2e)"},{"$f":"Enter_Data!E25","v":0}]
[null,null,{"$f":"Enter_Data!C26","v":"Have the Scope 1 / Scope 2 GHG emissions for this site been verified through a third party?"},{"$f":"Enter_Data!E26","v":0}]
[]
[null,null,{"$f":"Enter_Data!C28","v":"Scope 3 Emissions Data "}]
[null,null,{"$f":"Enter_Data!C29","v":"Does this site collect or estimate Scope 3 GHG emissions data?"},{"$f":"Enter_Data!E29","v":0}]
[null,null,{"$f":"Enter_Data!C30","v":"If calculated, please provide your ALLOCATED Scope 3 GHG emissions for this site by category (metric tons CO2e)"},{"$f":"Enter_Data!E30","v":0}]
[null,null,{"$f":"Enter_Data!C31","v":"Category 1 – upstream: Purchased Goods & Services (metric tons CO2e)"},{"$f":"Enter_Data!E31","v":0}]
[null,null,{"$f":"Enter_Data!C32","v":"Category 2 – upstream: Capital Goods (metric tons CO2e)"},{"$f":"Enter_Data!E32","v":0}]
[null,null,{"$f":"Enter_Data!C33","v":"Category 3 – upstream: Fuel- and energy-related activities (metric tons CO2e)"},{"$f":"Enter_Data!E33","v":0}]
[null,null,{"$f":"Enter_Data!C34","v":"Category 4 – upstream: Transportation & Distribution (metric tons CO2e)"},{"$f":"Enter_Data!E34","v":0}]
[null,null,{"$f":"Enter_Data!C35","v":"Category 5 – upstream: Waste Generated in Operations (metric tons CO2e)"},{"$f":"Enter_Data!E35","v":0}]
[null,null,{"$f":"Enter_Data!C36","v":"Category 6 – upstream: Business Travel (metric tons CO2e)"},{"$f":"Enter_Data!E36","v":0}]
[null,null,{"$f":"Enter_Data!C37","v":"Category 7 – upstream: Employee Commuting (metric tons CO2e)"},{"$f":"Enter_Data!E37","v":0}]
[null,null,{"$f":"Enter_Data!C38","v":"Category 8 – upstream: Leased Assets (metric tons CO2e)"},{"$f":"Enter_Data!E38","v":0}]
[null,null,{"$f":"Enter_Data!C39","v":"Category 9 – downstream: Transportation & Distribution (metric tons CO2e)"},{"$f":"Enter_Data!E39","v":0}]
[null,null,{"$f":"Enter_Data!C40","v":"Category 10 – downstream: Processing of Sold Products (metric tons CO2e)"},{"$f":"Enter_Data!E40","v":0}]
[null,null,{"$f":"Enter_Data!C41","v":"Category 13 – downstream: Leased Assets (metric tons CO2e)"},{"$f":"Enter_Data!E41","v":0}]
[null,null,{"$f":"Enter_Data!C42","v":"Category 14 – downstream: Franchises (metric tons CO2e)"},{"$f":"Enter_Data!E42","v":0}]
[null,null,{"$f":"Enter_Data!C43","v":"Category 15 – downstream: Investments (metric tons CO2e)"},{"$f":"Enter_Data!E43","v":0}]
[null,null,{"$f":"Enter_Data!C44","v":"Have the Scope 3 GHG emissions at this site been verified through a third party?"},{"$f":"Enter_Data!E44","v":0}]
[]
[null,null,{"$f":"Enter_Data!C46","v":"2030 (Near Term) Emission Reduction Targets"}]
[null,null,{"$f":"Enter_Data!C47","v":"Does this site have an absolute Scope 1 & 2 GHG emissions reduction target for 2030?"},{"$f":"Enter_Data!E47","v":0}]
[null,null,{"$f":"Enter_Data!C48","v":"Baseline year (YYYY) for absolute Scope 1 & 2 GHG emissions reduction 2030 target"},{"$f":"Enter_Data!E48","v":0}]
[null,null,{"$f":"Enter_Data!C49","v":"What is this facility’s absolute Scope 1 & 2 emissions reduction target for 2030?"},{"$f":"Enter_Data!E49","v":0}]
[null,null,{"$f":"Enter_Data!C50","v":"Does this site have an absolute Scope 3 emissions reduction target for 2030?"},{"$f":"Enter_Data!E50","v":0}]
[null,null,{"$f":"Enter_Data!C51","v":"Baseline year (YYYY) for absolute Scope 3 emissions reduction 2030 target"},{"$f":"Enter_Data!E51","v":0}]
[null,null,{"$f":"Enter_Data!C52","v":"What is this facility’s absolute Scope 3 emissions reduction target for 2030?"},{"$f":"Enter_Data!E52","v":0}]
[]
[null,null,{"$f":"Enter_Data!C54","v":"Carbon Neutral Targets"}]
[null,null,{"$f":"Enter_Data!C55","v":"Do you have a target date to be carbon neutral for scope 1, 2 and 3 emissions?"},{"$f":"Enter_Data!E55","v":0}]
[null,null,{"$f":"Enter_Data!C56","v":"By what year does this site target to be carbon neutral for scope 1, 2 and 3 emissions?"},{"$f":"Enter_Data!E56","v":0}]
[null,null,{"$f":"Enter_Data!C57","v":"Do you have a Science Based Scope 1, 2 and 3 GHG reduction goal to achieve carbon neutrality by 2050?"},{"$f":"Enter_Data!E57","v":0}]
[null,null,{"$f":"Enter_Data!C58","v":"Has your carbon neutrality target date for scope 1, 2 and 3 GHG emissions been externally validated?"},{"$f":"Enter_Data!E58","v":0}]
[null,null,{"$f":"Enter_Data!C59","v":"By what year does this site target to be carbon neutral for scope 1 and 2 emissions?"},{"$f":"Enter_Data!E59","v":0}]
[null,null,{"$f":"Enter_Data!C60","v":"Has your carbon neutrality target date for scope 1 & 2 GHG emissions been externally validated?"},{"$f":"Enter_Data!E60","v":0}]
[null,null,{"$f":"Enter_Data!C61","v":"Please provide the name of third party that has done the validation, if applicable."},{"$f":"Enter_Data!E61","v":0}]
[null,null,{"$f":"Enter_Data!C62","v":"Has your carbon neutrality target been disclosed?"},{"$f":"Enter_Data!E62","v":0}]
[]
[]
[null,null,"© 2025 Suppliers Partnership for the Environment (SP)"]

{"sheet":"Bulk Upload","index":3,"n_rows":65,"n_cols":8,"rows_kept":65,"cut":false,"hidden":false,"merged":[[6,2,6,14],[0,1,2,14],[9,3,9,70]]}
[null,"SP Streamlined Carbon Emissions Questionnaire"]
[]
[]
[]
[null,null,"Multi-Site Bulk Upload"]
[]
[null,null,"Please use this tab to enter data for a large number of sites.  See first column for the list of questions/fields, then enter each site’s answers on a new column. Enter one site per column. Where data is not available for that site, leave that field blank. Add as many columns as needed to cover all reporting sites."]
[]
[]
[null,null,"Data Fields","Individual Site Data"]
[null,null,{"$f":"Enter_Data!C11","v":"Supplier manufacturing site name"},"Site A","Site B","Site C","Site D","Site E"]
[null,null,{"$f":"Enter_Data!C12","v":"Supplier manufacturing site level ID (e.g., DUNS #, OEM Supplier Code)"}]
[null,null,{"$f":"Enter_Data!C13","v":"Supplier contact person name"}]
[null,null,{"$f":"Enter_Data!C14","v":"Supplier contact person e-mail address"}]
[]
[null,null,{"$f":"Enter_Data!C16","v":"Emissions Data"}]
[null,null,{"$f":"Enter_Data!C17","v":"Do you have Greenhouse Gas (GHG) data for year 2024?"}]
[null,null,{"$f":"Enter_Data!C18","v":"How would you like to submit your allocated emissions?"}]
[null,null,{"$f":"Enter_Data!C19","v":"Unallocated Option: Please provide OEM’s revenue share percentage for this site (0-100)"}]
[null,null,{"$f":"Enter_Data!C20","v":"Unallocated Option: Please provide your TOTAL scope 1 emissions for this site (metric tons CO2e)"}]
[null,null,{"$f":"Enter_Data!C21","v":"Unallocated Option: Please provide your TOTAL location-based Scope 2 GHG emissions for this site (metric tons CO2e)"}]
[null,null,{"$f":"Enter_Data!C22","v":"Unallocated Option: Please provide your TOTAL market-based Scope 2 GHG emissions for this site (metric tons CO2e)"}]
[null,null,{"$f":"Enter_Data!C23","v":"Pre-Allocated Option: Please provide your OEM allocated scope 1 emissions for this site (metric tons CO2e)"}]
[null,null,{"$f":"Enter_Data!C24","v":"Pre-Allocated Option: Please provide your OEM allocated location-based Scope 2 GHG emissions for this site (metric tons CO2e)"}]
[null,null,{"$f":"Enter_Data!C25","v":"Pre-Allocated Option: Please provide your OEM allocated market-based Scope 2 GHG emissions for this site (metric tons CO2e)"}]
[null,null,{"$f":"Enter_Data!C26","v":"Have the Scope 1 / Scope 2 GHG emissions for this site been verified through a third party?"}]
[]
[null,null,{"$f":"Enter_Data!C28","v":"Scope 3 Emissions Data "}]
[null,null,{"$f":"Enter_Data!C29","v":"Does this site collect or estimate Scope 3 GHG emissions data?"}]
[null,null,{"$f":"Enter_Data!C30","v":"If calculated, please provide your ALLOCATED Scope 3 GHG emissions for this site by category (metric tons CO2e)"}]
[null,null,{"$f":"Enter_Data!C31","v":"Category 1 – upstream: Purchased Goods & Services (metric tons CO2e)"}]
[null,null,{"$f":"Enter_Data!C32","v":"Category 2 – upstream: Capital Goods (metric tons CO2e)"}]
[null,null,{"$f":"Enter_Data!C33","v":"Category 3 – upstream: Fuel- and energy-related activities (metric tons CO2e)"}]
[null,null,{"$f":"Enter_Data!C34","v":"Category 4 – upstream: Transportation & Distribution (metric tons CO2e)"}]
[null,null,{"$f":"Enter_Data!C35","v":"Category 5 – upstream: Waste Generated in Operations (metric tons CO2e)"}]
[null,null,{"$f":"Enter_Data!C36","v":"Category 6 – upstream: Business Travel (metric tons CO2e)"}]
[null,null,{"$f":"Enter_Data!C37","v":"Category 7 – upstream: Employee Commuting (metric tons CO2e)"}]
[null,null,{"$f":"Enter_Data!C38","v":"Category 8 – upstream: Leased Assets (metric tons CO2e)"}]
[null,null,{"$f":"Enter_Data!C39","v":"Category 9 – downstream: Transportation & Distribution (metric tons CO2e)"}]
[null,null,{"$f":"Enter_Data!C40","v":"Category 10 – downstream: Processing of Sold Products (metric tons CO2e)"}]
[null,null,{"$f":"Enter_Data!C41","v":"Category 13 – downstream: Leased Assets (metric tons CO2e)"}]
[null,null,{"$f":"Enter_Data!C42","v":"Category 14 – downstream: Franchises (metric tons CO2e)"}]
[null,null,{"$f":"Enter_Data!C43","v":"Category 15 – downstream: Investments (metric tons CO2e)"}]
[null,null,{"$f":"Enter_Data!C44","v":"Have the Scope 3 GHG emissions at this site been verified through a third party?"}]
[]
[null,null,{"$f":"Enter_Data!C46","v":"2030 (Near Term) Emission Reduction Targets"}]
[null,null,{"$f":"Enter_Data!C47","v":"Does this site have an absolute Scope 1 & 2 GHG emissions reduction target for 2030?"}]
[null,null,{"$f":"Enter_Data!C48","v":"Baseline year (YYYY) for absolute Scope 1 & 2 GHG emissions reduction 2030 target"}]
[null,null,{"$f":"Enter_Data!C49","v":"What is this facility’s absolute Scope 1 & 2 emissions reduction target for 2030?"}]
[null,null,{"$f":"Enter_Data!C50","v":"Does this site have an absolute Scope 3 emissions reduction target for 2030?"}]
[null,null,{"$f":"Enter_Data!C51","v":"Baseline year (YYYY) for absolute Scope 3 emissions reduction 2030 target"}]
[null,null,{"$f":"Enter_Data!C52","v":"What is this facility’s absolute Scope 3 emissions reduction target for 2030?"}]
[]
[null,null,{"$f":"Enter_Data!C54","v":"Carbon Neutral Targets"}]
[null,null,{"$f":"Enter_Data!C55","v":"Do you have a target date to be carbon neutral for scope 1, 2 and 3 emissions?"}]
[null,null,{"$f":"Enter_Data!C56","v":"By what year does this site target to be carbon neutral for scope 1, 2 and 3 emissions?"}]
[null,null,{"$f":"Enter_Data!C57","v":"Do you have a Science Based Scope 1, 2 and 3 GHG reduction goal to achieve carbon neutrality by 2050?"}]
[null,null,{"$f":"Enter_Data!C58","v":"Has your carbon neutrality target date for scope 1, 2 and 3 GHG emissions been externally validated?"}]
[null,null,{"$f":"Enter_Data!C59","v":"By what year does this site target to be carbon neutral for scope 1 and 2 emissions?"}]
[null,null,{"$f":"Enter_Data!C60","v":"Has your carbon neutrality target date for scope 1 & 2 GHG emissions been externally validated?"}]
[null,null,{"$f":"Enter_Data!C61","v":"Please provide the name of third party that has done the validation, if applicable."}]
[null,null,{"$f":"Enter_Data!C62","v":"Has your carbon neutrality target been disclosed?"}]
[]
[]
[null,null,"© 2025 Suppliers Partnership for the Environment (SP)"]

{"sheet":"Macro Instructions","index":4,"n_rows":5,"n_cols":25,"rows_kept":5,"cut":false,"hidden":false,"merged":[[37,3,40,23],[0,1,2,25],[9,3,12,23],[15,3,21,23],[24,3,25,23],[28,3,34,23]]}
[null,"SP Streamlined Carbon Emissions Questionnaire"]
[]
[]
[]
[null,null,"Introduction",null,null,null,null,null,null,null,null,null,null,null,null,null,null,null,null,null,null,null,null,null,"Version 1.0 - May 2025"]